bitfinex/quotes_ETHUSD_20250925
["timestamp","ask_amount","ask_price","bid_price","bid_amount"]
[1758820109458,4.571,3935.3,3934.3,0.7165]
[1758820109459,6.661087,3934.7,3934.3,2.54173052]
[1758820109690,0.45568759,3935.7,3934.4,0.7165]
[1758820109848,3.0,3935.5,3934.5,0.7165]
[1758820110047,10.99604394,3935.4,3934.6,0.2454]
[1758820110282,2.54117015,3935.2,3934.6,0.2454]
[1758820110582,2.54117015,3935.2,3934.4,2.54163675]
[1758820110583,3.0,3935.0,3934.2,0.003]
[1758820110885,4.54452694,3934.9,3934.3,0.2454]
[1758820111080,4.791141,3934.8,3934.3,0.2454]
[1758820111283,0.02687594,3934.7,3934.3,0.2454]
[1758820111585,3.98430294,3934.7,3934.2,0.003]
[1758820111785,26.282987,3934.6,3934.2,0.003]
[1758820112082,20.80439094,3934.5,3934.2,0.003]
[1758820112291,7.10590494,3934.4,3934.2,0.003]
[1758820112584,2.191538,3934.3,3934.2,0.003]
[1758820112750,2.5414505,3934.8,3934.2,0.003]
[1758820112956,9.88180093,3934.7,3934.2,0.2484]
[1758820113152,2.733247,3934.6,3934.2,0.2484]
[1758820113488,0.4303,3935.7,3934.3,0.74191748]
[1758820113795,3.33329606,3935.0,3934.2,0.003]
[1758820114096,2.54151622,3934.7,3934.2,0.003]
[1758820114307,24.67242267,3934.6,3934.2,0.003]
[1758820114449,30.0,3934.5,3934.2,0.003]
[1758820114784,2.54174821,3934.3,3934.2,0.003]
[1758820114983,27.884045,3934.3,3934.2,0.003]
[1758820115156,20.865529,3934.3,3934.2,0.003]
[1758820115359,23.92680202,3934.3,3934.2,0.003]
[1758820115564,21.38505381,3934.3,3934.2,0.003]
[1758820115764,20.81252481,3934.3,3934.2,0.003]
[1758820115968,27.14627302,3934.3,3934.2,0.003]
[1758820116403,36.13781702,3934.3,3934.2,0.003]
[1758820116759,36.62791702,3934.3,3934.2,0.003]
[1758820116961,35.54970502,3934.3,3934.2,0.003]
[1758820117289,35.60950502,3934.3,3934.2,0.003]
[1758820117513,3.33426515,3933.5,3933.4,0.002]
[1758820117655,9.01271765,3932.8,3931.5,0.4722786]
[1758820117856,6.33646451,3930.1,3930.0,0.49207277]
[1758820118083,6.33646451,3930.1,3926.1,0.4711]
[1758820118084,5.06824,3927.9,3926.1,0.4711]
[1758820118263,0.792,3929.1,3927.5,0.2454]
[1758820118264,26.41307294,3927.8,3927.5,0.2454]
[1758820118591,8.06824,3927.5,3927.4,0.23019274]
[1758820118796,4.857302,3927.6,3926.4,0.2454]
[1758820119014,7.389672,3927.7,3926.4,0.7165]
[1758820119212,11.9536516,3929.5,3926.5,0.74196797]
[1758820119213,4.857302,3927.6,3926.5,0.74196797]
[1758820119486,22.918103,3928.2,3926.6,0.2454]
[1758820119689,0.792,3928.0,3926.6,3.4995538]
[1758820119902,4.857302,3927.9,3927.7,2.54598923]
[1758820120054,8.180644,3928.5,3927.8,0.7165]
[1758820120380,0.554514,3929.4,3928.2,2.54567984]
[1758820120381,4.140802,3928.4,3928.2,2.54567984]
[1758820120711,4.140802,3928.4,3926.7,2.119]
[1758820120712,4.140802,3928.3,3927.6,4.686]
[1758820120909,4.140802,3928.2,3928.1,2.54575077]
[1758820121061,37.932802,3928.9,3927.7,0.4686]
[1758820121261,0.12562177,3930.0,3927.2,2.54634031]
[1758820121262,4.140802,3928.8,3928.6,2.54538467]
[1758820121579,0.57389041,3930.3,3928.6,2.54538467]
[1758820121580,6.87902994,3930.2,3928.6,2.119]
[1758820121790,6.87902994,3930.2,3927.8,2.54592749]
[1758820121791,3.071447,3929.8,3926.6,0.23634]
[1758820122089,0.792,3929.1,3926.7,2.14446667]
[1758820122308,3.792,3928.9,3926.8,2.8348]
[1758820122467,3.071447,3928.8,3927.1,3.792]
[1758820122668,6.58521,3929.6,3927.6,3.33808412]
[1758820122876,2.105,3930.0,3927.7,3.7158]
[1758820122877,6.82159294,3929.5,3927.7,3.7158]
[1758820123073,14.343902,3929.4,3927.8,1.08738]
[1758820123295,14.343902,3929.4,3927.9,0.2422]
[1758820123296,0.02687594,3929.3,3927.9,0.2422]
[1758820123497,3.792,3929.0,3927.4,0.2422]
[1758820123820,6.17147294,3928.9,3927.5,0.7158]
[1758820123959,3.09832294,3928.8,3927.6,0.7158]
[1758820124183,3.071447,3928.7,3928.3,2.5456205]
[1758820124535,3.071447,3928.7,3928.5,2.5454919]
[1758820124679,3.071447,3928.6,3928.4,0.25456205]
[1758820124885,3.071447,3928.5,3928.4,2.54553123]
[1758820125125,8.618445,3929.1,3927.8,2.12]
[1758820125432,0.02687594,3929.0,3927.9,0.7158]
[1758820125581,0.02687594,3929.0,3928.3,2.54560134]
[1758820125582,5.79642094,3929.0,3928.3,2.54560134]
[1758820125782,3.071447,3928.9,3928.4,0.7158]
[1758820126028,5.86986194,3929.3,3928.4,0.74125565]
[1758820126193,5.887391,3929.2,3928.4,0.7158]
[1758820126386,7.74020694,3929.1,3928.5,2.5454915]
[1758820126586,5.879536,3929.0,3928.4,0.2422]
[1758820126785,3.071447,3928.9,3928.8,2.54529876]
[1758820126986,5.85486194,3929.3,3928.8,0.2422]
[1758820127336,0.52620533,3929.2,3929.1,2.54511211]
[1758820127487,2.12,3930.4,3929.3,2.5449439]
[1758820127683,3.86474594,3930.3,3929.4,0.2422]
[1758820127894,3.013827,3930.2,3929.1,0.53325538]
[1758820128192,3.27670294,3930.1,3928.8,0.2422]
[1758820128402,3.27670294,3930.1,3929.0,2.54515205]
[1758820128403,11.598743,3930.0,3929.0,2.54515205]
[1758820128604,0.02687594,3929.9,3929.0,2.54515205]
[1758820128904,0.1272,3929.1,3929.0,2.54515205]
[1758820129417,3.20754,3929.0,3928.3,2.12]
[1758820129618,0.46767594,3928.9,3927.6,2.3622]
[1758820129832,3.0,3928.7,3927.6,0.2422]
[1758820130010,3.0,3928.5,3927.6,0.2422]
[1758820130339,3.0,3928.5,3927.1,0.2422]
[1758820130340,2.54567729,3928.3,3927.1,0.2422]
[1758820130486,24.94056394,3928.2,3926.7,2.3622]
[1758820130682,30.003395,3928.1,3927.0,2.5464629]
[1758820130882,30.003395,3928.1,3927.0,2.54646604]
[1758820130883,20.58880194,3928.0,3927.0,2.54646604]
[1758820131084,20.58880194,3928.0,3926.7,5.00562867]
[1758820131085,12.94951,3927.9,3926.9,0.2422]
[1758820131285,5.44422194,3927.8,3926.9,0.2422]
[1758820131632,5.44422194,3927.8,3925.3,2.54754246]
[1758820131633,5.43422194,3927.7,3926.4,4.66684606]
[1758820131813,14.837624,3927.6,3926.4,3.13176461]
[1758820132114,19.30312294,3927.5,3926.2,2.54694193]
[1758820132315,19.30312294,3927.5,3925.8,0.2422]
[1758820132316,26.049442,3927.4,3926.0,7.03035531]
[1758820132521,4.734,3927.5,3926.0,4.48324538]
[1758820132522,3.0,3927.2,3926.0,4.48324538]
[1758820132823,9.628,3928.1,3926.0,4.48324538]
[1758820132824,3.89597494,3927.1,3926.1,0.02547056]
[1758820133125,4.737,3927.4,3926.1,0.2422]
[1758820133282,2.5618,3927.7,3926.2,1.49041703]
[1758820133283,0.02687594,3927.3,3926.2,1.49041703]
[1758820133707,0.02687594,3927.3,3926.2,0.2422]
[1758820133989,4.60787594,3927.3,3926.2,0.2422]
[1758820134209,0.02687594,3927.3,3926.2,0.2422]
[1758820134413,12.613362,3927.2,3926.4,0.002]
[1758820134621,4.737,3927.3,3926.4,0.002]
[1758820134924,0.4408,3928.1,3927.4,2.54617189]
[1758820135134,9.92569994,3928.0,3927.3,2.54622873]
[1758820135283,2.41366,3927.9,3926.8,0.2422]
[1758820135487,3.27001894,3927.8,3926.8,0.2422]
[1758820135694,4.376587,3927.7,3926.8,0.2422]
[1758820135918,0.02687594,3927.6,3926.8,0.2422]
[1758820136119,0.4408,3928.1,3926.8,0.2422]
[1758820136120,0.02687594,3928.0,3927.4,2.54617458]
[1758820136335,0.02687594,3928.0,3927.4,2.54615841]
[1758820136629,0.02687594,3928.0,3927.6,2.54606858]
[1758820136795,0.02687594,3928.3,3927.7,0.2422]
[1758820136985,1.958,3928.6,3927.8,2.54595447]
[1758820137318,1.958,3928.6,3927.1,0.4736]
[1758820137319,4.15649494,3928.5,3927.1,2.54634425]
[1758820137521,12.214905,3928.4,3927.3,2.5462151]
[1758820137706,0.02687594,3928.3,3926.8,9.3955884]
[1758820137919,2.80510294,3928.3,3926.9,1.98161082]
[1758820138118,3.698114,3928.2,3927.7,2.54600781]
[1758820138336,0.02687594,3928.3,3928.0,2.54576909]
[1758820138497,0.02687594,3928.3,3927.8,2.78813967]
[1758820138498,0.02687594,3928.7,3928.1,2.54574062]
[1758820138698,2.121,3929.2,3927.9,0.4736]
[1758820138899,2.456694,3929.1,3928.2,0.2422]
[1758820139113,0.01415395,3929.7,3928.6,2.54538787]
[1758820139329,2.69441195,3929.7,3928.2,0.2422]
[1758820139635,2.69441195,3929.7,3928.4,0.1272]
[1758820139636,0.1272,3929.1,3928.4,0.1272]
[1758820139797,0.1272,3929.1,3929.0,2.54517688]
[1758820140002,0.1272,3929.1,3929.0,2.78737688]
[1758820140230,0.1272,3929.1,3928.7,0.4736]
[1758820140431,2.121,3930.2,3928.4,0.1272]
[1758820140432,0.6862,3931.4,3928.9,3.0]
[1758820140733,0.1272,3930.6,3929.8,0.1272]
[1758820140895,0.1264,3931.2,3930.5,0.1272]
[1758820141097,9.392254,3931.1,3929.4,0.2422]
[1758820141297,10.08958795,3931.0,3929.8,2.54465622]
[1758820141510,18.46454,3930.9,3929.9,0.02544594]
[1758820141697,18.68654,3930.8,3929.3,3.0]
[1758820141897,2.54302982,3932.4,3929.0,0.2422]
[1758820141898,3.93822295,3930.7,3929.0,0.2422]
[1758820142137,0.792,3930.4,3928.3,0.4736]
[1758820142298,30.70035395,3930.3,3928.4,0.2422]
[1758820142503,6.864857,3930.2,3929.1,2.54511118]
[1758820142831,3.06030095,3930.1,3928.8,0.2422]
[1758820143055,3.672175,3930.0,3928.8,2.3632]
[1758820143232,0.6862,3930.3,3928.8,2.3632]
[1758820143233,2.71515395,3929.9,3928.8,2.3632]
[1758820143433,0.01415395,3930.3,3928.9,3.24434167]
[1758820143658,2.55830644,3930.6,3929.0,0.2375]
[1758820143826,4.10493795,3930.6,3929.0,0.2375]
[1758820144022,0.01415395,3930.6,3929.0,0.2375]
[1758820144222,3.615133,3930.5,3929.1,0.38323264]
[1758820144562,4.52700395,3930.4,3929.3,2.54497872]
[1758820144724,0.4489,3931.1,3929.4,0.26294917]
[1758820144922,0.01415395,3931.0,3930.2,2.54439241]
[1758820145258,0.01415395,3931.5,3930.1,2.121]
[1758820145446,3.6806,3931.4,3929.4,0.2375]
[1758820145633,3.0,3931.1,3929.4,2.54486617]
[1758820145835,0.01415395,3931.0,3930.2,2.54439419]
[1758820146035,0.01415395,3931.2,3930.0,0.2375]
[1758820146359,0.01415395,3931.6,3930.1,2.14644464]
[1758820146683,5.511923,3931.5,3930.2,0.6991]
[1758820146858,6.14997795,3931.4,3930.6,2.54408253]
[1758820147026,4.748373,3931.3,3930.6,2.54408253]
[1758820147222,0.01415395,3931.7,3930.6,2.78158253]
[1758820147531,0.4489,3932.7,3930.7,0.6991]
[1758820147739,0.4489,3932.7,3930.8,0.6991]
[1758820147740,5.82581195,3932.6,3930.8,0.6991]
[1758820147932,2.54257794,3933.1,3931.0,2.54388196]
[1758820147933,0.39887548,3933.1,3931.0,2.54388196]
[1758820148131,0.01415395,3933.0,3931.1,0.6991]
[1758820148361,0.01415395,3933.0,3931.2,0.2375]
[1758820148362,0.6806,3932.9,3931.2,0.2375]
[1758820148530,5.13515395,3932.8,3930.8,4.66499843]
[1758820148730,2.54337243,3931.8,3930.9,2.121]
[1758820148925,2.54337243,3931.8,3930.5,2.121]
[1758820148926,2.37649695,3931.7,3930.5,2.121]
[1758820149139,3.164,3931.6,3930.6,2.54408397]
[1758820149345,0.01415395,3931.5,3930.5,2.121]
[1758820149663,10.2309,3931.4,3930.3,2.121]
[1758820149958,2.54390338,3931.0,3930.3,2.121]
[1758820150160,15.81206695,3930.9,3929.7,0.2375]
[1758820150330,18.50301911,3930.8,3929.8,2.121]
[1758820150534,13.42816295,3930.7,3929.8,2.121]
[1758820150765,2.54374237,3931.3,3929.9,2.54453762]
[1758820151064,0.01415395,3931.2,3930.0,0.2493]
[1758820151268,0.1264,3931.0,3930.4,2.54426227]
[1758820151764,0.1264,3931.0,3930.3,0.1272]
[1758820151969,11.123889,3930.9,3930.3,0.1272]
[1758820152267,7.689263,3930.3,3929.5,2.121]
[1758820152440,7.689263,3930.3,3929.7,0.1272]
[1758820152441,0.1272,3930.3,3929.7,0.1272]
[1758820152870,0.1272,3930.3,3929.8,2.54465876]
[1758820153033,0.1272,3930.3,3929.7,0.1272]
[1758820153234,0.1272,3930.3,3929.8,0.02544658]
[1758820153443,0.01415395,3931.4,3929.9,0.7217]
[1758820153634,0.1264,3931.0,3930.7,2.54402458]
[1758820153835,0.1264,3931.2,3930.8,2.54400294]
[1758820154060,10.220957,3931.1,3930.6,0.1272]
[1758820154268,0.01415395,3931.0,3930.3,2.12]
[1758820154473,0.01415395,3931.4,3930.3,2.12]
[1758820154775,0.001,3931.1,3930.1,0.2493]
[1758820154934,0.001,3931.1,3930.2,2.12]
[1758820154935,10.551651,3931.0,3930.2,2.12]
[1758820155136,0.01415395,3930.9,3930.2,2.12]
[1758820155349,0.01415395,3930.9,3929.5,0.002]
[1758820155350,14.613413,3930.2,3929.5,0.002]
[1758820155548,11.887405,3930.1,3929.5,2.122]
[1758820155766,7.36436,3930.0,3929.5,2.122]
[1758820155966,14.54786571,3930.4,3929.5,2.122]
[1758820156138,11.73494095,3930.3,3929.5,0.002]
[1758820156454,2.54447026,3930.1,3929.5,0.002]
[1758820156656,25.94679135,3930.0,3929.5,0.002]
[1758820156968,12.49447,3929.9,3929.5,0.002]
[1758820157156,0.01415395,3929.8,3929.5,0.002]
[1758820157363,11.90853395,3929.9,3929.5,0.002]
[1758820157568,3.39904562,3930.8,3929.6,0.2493]
[1758820157874,2.54434635,3930.3,3929.5,0.002]
[1758820158098,15.90234759,3930.2,3929.5,0.002]
[1758820158297,0.6806,3930.7,3929.8,2.54462655]
[1758820158496,0.6806,3930.7,3929.5,0.002]
[1758820158497,2.01425395,3930.6,3929.5,0.002]
[1758820158708,5.107198,3930.5,3929.5,2.54682838]
[1758820158897,0.01415395,3930.4,3929.5,2.54484907]
[1758820159199,0.6812,3930.3,3929.2,2.12]
[1758820159404,0.01415395,3930.2,3929.3,2.54497664]
[1758820159576,16.160353,3930.1,3929.2,4.66502812]
[1758820159777,0.01415395,3930.0,3929.3,2.54493226]
[1758820160114,16.24628795,3930.0,3929.2,2.12]
[1758820160313,16.702736,3929.9,3929.2,4.66503537]
[1758820160518,0.01415395,3929.8,3929.2,4.66503537]
[1758820160671,15.35037295,3930.0,3929.2,2.12]
[1758820160865,1.08024897,3930.3,3929.2,2.12]
[1758820160866,3.78593495,3929.9,3929.2,2.12]
[1758820161115,12.137535,3929.2,3929.1,0.002]
[1758820161280,2.54504733,3929.2,3929.1,0.002]
[1758820161484,3.22624733,3929.2,3929.1,0.002]
[1758820161719,3.24040128,3929.2,3929.1,0.002]
[1758820161924,37.94640128,3929.2,3929.1,0.002]
[1758820162230,36.83193633,3929.2,3929.1,0.002]
[1758820162431,37.93224733,3929.2,3929.1,0.002]
[1758820163103,11.65739233,3929.2,3929.1,0.002]
[1758820163297,12.09259233,3929.2,3929.1,0.002]
[1758820163497,10.777475,3929.2,3929.1,0.002]
[1758820163724,3.147503,3929.2,3929.1,0.002]
[1758820163918,9.32211928,3929.2,3929.1,0.002]
[1758820164123,9.30796533,3929.2,3929.1,0.002]
[1758820164543,33.62544124,3929.2,3929.1,0.002]
[1758820164749,36.62544124,3929.2,3929.1,0.002]
[1758820164898,37.41744124,3929.2,3929.1,0.002]
[1758820165601,37.41744124,3929.2,3927.1,4.91666327]
[1758820165602,2.54573338,3928.2,3927.1,4.91666327]
[1758820165899,2.54573338,3928.2,3927.1,0.82195898]
[1758820165900,2.54601275,3927.8,3927.1,0.82195898]
[1758820166099,13.34303995,3927.7,3926.4,0.002]
[1758820166321,3.846986,3927.6,3926.4,0.002]
[1758820166532,0.6812,3927.9,3926.4,0.2513]
[1758820166533,8.09038895,3927.5,3926.4,0.2513]
[1758820166719,24.754587,3927.4,3926.4,0.2513]
[1758820166924,21.13020495,3927.3,3926.4,0.2513]
[1758820167126,13.99849295,3927.2,3926.4,0.002]
[1758820167300,11.11168495,3927.1,3926.4,0.002]
[1758820167643,10.41290895,3927.0,3926.4,0.002]
[1758820167821,4.99427995,3926.9,3926.4,0.002]
[1758820168135,3.0,3928.1,3926.4,0.2513]
[1758820168342,0.01415395,3928.0,3927.2,2.54634139]
[1758820168525,3.487625,3927.9,3927.3,0.2493]
[1758820168834,2.889,3927.8,3927.4,2.54616129]
[1758820169136,2.889,3927.8,3926.9,2.121]
[1758820169137,4.692,3928.9,3927.9,2.54583436]
[1758820169337,4.692,3928.9,3927.7,2.54601823]
[1758820169338,8.91721095,3928.8,3927.7,2.54601823]
[1758820169535,9.22016,3928.7,3928.1,2.54574494]
[1758820169702,2.41415395,3928.6,3927.9,2.54588683]
[1758820170037,2.811846,3928.5,3928.2,2.54568341]
[1758820170241,2.832853,3928.5,3928.2,0.2493]
[1758820170422,0.01415395,3928.8,3928.2,0.2493]
[1758820170613,0.01415395,3928.8,3928.3,2.54563042]
[1758820170812,0.01415395,3928.8,3928.2,0.2493]
[1758820170813,4.946283,3928.7,3928.2,0.2493]
[1758820171135,9.826483,3928.6,3928.1,2.5456985]
[1758820171340,1.056,3929.3,3928.1,2.5456985]
[1758820171644,9.97215995,3929.2,3928.1,0.2493]
[1758820171939,5.545203,3929.1,3928.1,0.2493]
[1758820172112,24.24689395,3929.0,3927.5,0.2493]
[1758820172312,1.056,3929.3,3927.5,0.2493]
[1758820172313,2.54541848,3928.7,3927.6,2.54603367]
[1758820172629,0.01415395,3928.6,3927.6,0.79349747]
[1758820172828,2.54536588,3928.8,3927.6,0.79349747]
[1758820173007,0.792,3928.6,3927.2,2.54629044]
[1758820173216,2.54587682,3928.0,3927.6,0.002]
[1758820173515,2.54595447,3927.8,3927.6,0.002]
[1758820173736,16.69209224,3927.7,3927.6,0.002]
[1758820173939,27.44325929,3927.7,3927.6,0.002]
[1758820174237,12.271627,3927.7,3927.6,0.002]
[1758820174447,3.261966,3927.7,3927.6,0.002]
[1758820174736,4.686,3927.9,3927.6,0.002]
[1758820175057,25.36721295,3927.8,3927.6,0.002]
[1758820175259,4.686,3927.9,3927.6,0.002]
[1758820175416,4.27412195,3927.8,3927.6,0.002]
[1758820175608,3.080968,3927.7,3927.6,0.002]
[1758820176048,8.324001,3927.7,3927.6,0.002]
[1758820176240,2.54621378,3927.4,3927.3,0.002]
[1758820176448,7.69615395,3927.4,3927.3,0.002]
[1758820176784,3.269888,3927.4,3927.3,0.002]
[1758820177072,0.38958521,3928.4,3927.3,0.002]
[1758820177073,7.145125,3927.7,3927.3,0.002]
[1758820177254,5.116379,3927.6,3927.3,0.2513]
[1758820177454,4.679,3928.2,3927.4,2.79545073]
[1758820177673,2.122,3928.9,3927.4,0.830919]
[1758820177883,13.66419295,3928.8,3927.6,2.54608412]
[1758820178184,5.354701,3928.7,3927.5,0.4724]
[1758820178401,0.39927396,3929.2,3927.7,0.2493]
[1758820178538,0.01415395,3929.1,3927.9,2.54588966]
[1758820178740,0.01415395,3929.2,3928.9,2.54520986]
[1758820178942,0.01415395,3929.7,3929.0,0.2493]
[1758820179154,9.31748895,3929.7,3928.5,0.4724]
[1758820179386,7.728068,3929.6,3928.7,2.79466899]
[1758820179581,2.704142,3929.7,3928.7,0.2493]
[1758820179875,0.001,3930.1,3928.8,0.74715306]
[1758820180076,0.001,3930.1,3930.0,2.54452926]
[1758820180444,0.001,3930.1,3930.0,2.79382926]
[1758820181478,0.001,3930.1,3930.0,3.22172926]
[1758820181856,0.001,3930.1,3929.2,0.2453]
[1758820182268,0.001,3930.1,3929.3,2.54496986]
[1758820182576,8.068365,3930.0,3929.2,0.2453]
[1758820182778,8.068365,3930.0,3929.1,2.54509607]
[1758820182779,0.01415395,3929.9,3929.1,2.54509607]
[1758820182992,7.034445,3929.8,3928.8,0.2453]
[1758820183198,0.001,3930.1,3929.9,2.54459062]
[1758820183369,0.001,3930.1,3930.0,2.78982926]
[1758820184283,0.001,3930.1,3930.0,3.21772926]
[1758820184801,0.001,3930.1,3930.0,2.54452926]
[1758820185590,0.001,3930.1,3930.0,3.21772926]
[1758820185795,0.001,3930.1,3930.0,3.24317455]
[1758820185996,0.001,3930.1,3930.0,3.79396481]
[1758820186198,0.001,3930.1,3930.0,3.92116481]
[1758820186396,0.001,3930.1,3930.0,6.9466101]
[1758820186598,0.001,3930.1,3930.0,7.58596481]
[1758820187886,0.001,3930.1,3930.0,13.57096481]
[1758820188267,0.001,3930.1,3930.0,14.36296481]
[1758820188578,0.01415395,3932.5,3931.9,2.54326978]
[1758820188890,0.01415395,3932.5,3930.5,2.54416957]
[1758820188891,3.23514595,3932.5,3931.5,4.653]
[1758820189110,0.2351,3933.1,3931.6,2.78879374]
[1758820189281,0.2351,3933.1,3932.9,2.54264406]
[1758820189469,0.2351,3933.7,3933.1,2.54246663]
[1758820189669,2.23459995,3933.6,3932.2,0.2453]
[1758820189968,0.45095395,3934.0,3932.3,0.6732]
[1758820190173,0.45095395,3934.0,3933.5,2.54220909]
[1758820190368,2.017361,3933.9,3933.5,2.54220235]
[1758820190596,2.612854,3933.9,3932.9,6.77]
[1758820190908,6.56521395,3933.8,3932.7,2.54275499]
[1758820191215,5.322842,3933.7,3932.6,4.648]
[1758820191369,0.01415395,3933.6,3932.6,4.648]
[1758820191569,0.6719,3933.5,3932.6,4.648]
[1758820191795,0.6719,3933.5,3931.8,0.2453]
[1758820191796,2.54239442,3933.3,3932.1,2.54311282]
[1758820192005,9.63646295,3933.2,3932.0,7.18923148]
[1758820192172,2.202723,3933.1,3932.0,4.646]
[1758820192374,0.2351,3933.5,3932.8,2.54269508]
[1758820192573,0.2351,3934.1,3933.5,2.54225561]
[1758820192788,5.82350495,3934.0,3932.7,6.764]
[1758820192984,12.816682,3933.9,3932.8,2.54271765]
[1758820193198,12.816682,3933.9,3933.0,2.54253845]
[1758820193199,0.01415395,3933.8,3933.0,2.54253845]
[1758820193473,0.6719,3933.7,3932.5,7.18690071]
[1758820193786,0.001,3933.4,3932.8,2.54266078]
[1758820193986,0.001,3933.4,3932.5,4.644]
[1758820194186,0.001,3933.4,3933.3,2.54239442]
[1758820194599,0.001,3933.4,3933.3,5.33559442]
[1758820195800,0.001,3933.4,3933.3,3.21559442]
[1758820196002,0.001,3933.4,3933.3,2.54239442]
[1758820196596,0.001,3933.4,3933.3,0.1264]
[1758820196916,0.001,3933.4,3933.3,2.54239442]
[1758820197308,0.001,3933.4,3933.3,3.34199442]
[1758820198216,0.001,3933.4,3933.3,2.91409442]
[1758820198376,0.001,3933.4,3933.3,2.66879442]
[1758820198821,0.001,3933.4,3933.3,4.35254878]
[1758820198994,0.001,3933.4,3933.3,4.32712484]
[1758820200716,0.001,3933.4,3933.3,2.66879442]
[1758820201800,0.001,3933.4,3933.3,2.69421836]
[1758820202113,0.001,3933.4,3933.3,2.91409442]
[1758820202327,0.001,3933.4,3933.3,2.66879442]
[1758820202498,0.001,3933.4,3933.3,7.30179442]
[1758820203179,0.001,3933.4,3933.3,7.54519442]
[1758820203611,0.001,3933.4,3933.3,8.01339442]
[1758820203820,0.001,3933.4,3933.3,9.28088483]
[1758820204278,1e-08,3934.2,3934.1,2.54187743]
[1758820204480,1e-08,3934.2,3934.1,12.29887743]
[1758820204713,1e-08,3934.2,3934.1,13.92887743]
[1758820204899,0.39850531,3936.8,3934.1,13.92887743]
[1758820204900,0.1264,3936.4,3936.2,2.54049784]
[1758820205102,0.2377,3936.4,3936.3,2.56586133]
[1758820205307,0.4417,3936.5,3935.7,4.639]
[1758820205308,0.4417,3936.5,3936.4,2.54039223]
[1758820205490,0.3641,3936.9,3936.8,2.54013411]
[1758820205809,0.001,3937.4,3936.9,2.54006959]
[1758820206013,6.370842,3936.9,3936.6,0.1264]
[1758820206316,0.69355395,3936.8,3936.2,2.54050437]
[1758820206491,5.16336295,3936.8,3935.6,4.14]
[1758820206683,9.123514,3936.7,3935.8,2.54074086]
[1758820206881,7.681814,3936.6,3935.6,4.14]
[1758820207085,7.45811795,3936.5,3934.4,2.54167167]
[1758820207314,6.840964,3936.4,3934.6,3.0]
[1758820207513,5.717305,3936.4,3935.8,2.54073016]
[1758820207810,0.2377,3936.9,3935.5,2.54097319]
[1758820208011,2.54080622,3937.4,3935.4,4.8794]
[1758820208012,3.0,3936.7,3935.4,6.755]
[1758820208219,11.87350495,3936.6,3935.2,4.636]
[1758820208422,6.995798,3936.5,3935.2,4.636]
[1758820208631,2.54101195,3937.0,3935.2,4.636]
[1758820208632,0.4427,3937.0,3935.3,0.7116]
[1758820208812,0.6804,3937.0,3935.5,2.54097319]
[1758820208986,0.6804,3937.0,3935.7,2.54084406]
[1758820208987,0.2387,3937.0,3935.7,2.54084406]
[1758820209189,0.001,3937.0,3936.2,2.54047178]
[1758820209432,7.531129,3936.9,3936.3,2.54045595]
[1758820209701,0.01515395,3937.0,3935.9,4.632]
[1758820209702,0.001,3937.0,3935.9,4.632]
[1758820209917,0.001,3937.0,3935.7,2.54079227]
[1758820209918,2.301905,3936.9,3936.0,4.634]
[1758820210116,2.301905,3936.9,3936.4,2.54039146]
[1758820210325,0.2377,3936.8,3936.1,2.54055748]
[1758820210484,0.2377,3936.8,3936.0,4.634]
[1758820210485,0.6794,3936.8,3936.0,4.634]
[1758820210820,0.001,3937.0,3936.1,0.2434]
[1758820211015,0.001,3937.0,3936.6,2.54020763]
[1758820211218,14.839301,3936.6,3936.0,4.634]
[1758820211426,0.2327,3936.6,3935.7,2.54080162]
[1758820211588,0.2327,3936.6,3935.1,0.2321]
[1758820211589,2.54039223,3936.4,3935.1,4.89130561]
[1758820211914,11.09512095,3936.3,3935.5,2.54091578]
[1758820212086,2.137413,3936.2,3935.2,4.631]
[1758820212287,0.24685395,3936.1,3935.6,2.54086207]
[1758820212529,3.31353,3936.0,3935.6,2.54090472]
[1758820212696,0.01415395,3936.5,3935.7,2.54078858]
[1758820212885,0.01415395,3936.5,3935.2,4.8631]
[1758820212886,22.802133,3936.4,3935.2,4.631]
[1758820213095,0.6759,3936.4,3935.2,5.3059]
[1758820213297,0.001,3936.7,3935.3,2.77320233]
[1758820213498,3.317268,3936.6,3936.1,2.54052866]
[1758820213726,0.001,3936.7,3936.6,2.54026317]
[1758820214228,0.001,3936.7,3935.7,4.629]
[1758820214430,0.001,3936.7,3936.6,2.54026317]
[1758820216230,0.001,3936.7,3935.9,2.3501]
[1758820216231,2.328756,3936.6,3935.9,4.622]
[1758820216423,0.001,3936.7,3936.6,2.54026317]
[1758820217120,4.321729,3936.7,3935.9,4.8541]
[1758820217432,0.001,3936.7,3935.9,4.622]
[1758820217633,0.001,3936.7,3936.2,2.54051158]
[1758820217799,0.001,3936.7,3936.2,2.5405147]
[1758820218010,5.688075,3936.2,3935.2,0.2321]
[1758820218210,0.6759,3936.6,3935.3,4.623]
[1758820218410,2.479,3936.5,3936.4,2.54039223]
[1758820218633,2.479,3936.5,3935.4,0.2321]
[1758820218634,3.68403,3936.5,3935.4,0.2321]
[1758820218941,16.08513495,3936.4,3935.3,4.623]
[1758820219140,25.018982,3936.3,3935.1,2.118]
[1758820219356,22.46182895,3936.2,3935.2,2.5411669]
[1758820219554,3.0,3936.0,3933.8,2.54206892]
[1758820219711,3.0,3936.0,3933.5,2.54224213]
[1758820219712,0.792,3935.7,3934.6,2.54153504]
[1758820219910,21.28946338,3935.6,3934.7,2.54144553]
[1758820220143,21.28946338,3935.6,3934.1,5.0838]
[1758820220144,2.85170895,3935.5,3934.1,5.0838]
[1758820220309,0.6759,3935.4,3934.5,2.54159945]
[1758820220511,0.01415395,3935.3,3934.4,2.54168361]
[1758820220711,5.512879,3935.2,3934.7,2.54142608]
[1758820221022,0.63123982,3935.7,3934.3,2.54174821]